[Event "Late-Titled-Tuesday-Blitz-January-16-2024"]
[Site "Chess.com"]
[Date "2024.01.16"]
[Round "11"]
[White "ImportedItalianMaple"]
[Black "SanchezKelvin"]
[Result "1-0"]
[WhiteElo "2438"]
[BlackElo "2544"]
[TimeControl "180+1"]
[EndTime "16:06:01 PST"]
[Termination "ImportedItalianMaple won by resignation"]

1. e4 {[%clk 0:02:57.8]} 1... e5 {[%clk 0:02:51.9]} 2. Nc3 {[%clk 0:02:56.9]}
2... Nc6 {[%clk 0:02:43.8]} 3. Bc4 {[%clk 0:02:57.3]} 3... Nf6 {[%clk
0:02:43.2]} 4. d3 {[%clk 0:02:57.1]} 4... Bc5 {[%clk 0:02:42.6]} 5. f4 {[%clk
0:02:55.6]} 5... Bxg1 {[%clk 0:02:40.7]} 6. Rxg1 {[%clk 0:02:55]} 6... d6 {[%clk
0:02:41.6]} 7. f5 {[%clk 0:02:40.7]} 7... h6 {[%clk 0:02:40.7]} 8. Be3 {[%clk
0:02:28.9]} 8... Nd4 {[%clk 0:02:38.6]} 9. Ne2 {[%clk 0:02:20.1]} 9... b5 {[%clk
0:02:14.7]} 10. Bb3 {[%clk 0:01:47.6]} 10... Nxb3 {[%clk 0:02:08]} 11. axb3
{[%clk 0:01:48.5]} 11... Ng4 {[%clk 0:02:03.8]} 12. Qd2 {[%clk 0:01:13.1]} 12...
Qh4+ {[%clk 0:01:59.5]} 13. g3 {[%clk 0:01:05.1]} 13... Qxh2 {[%clk 0:01:30.8]}
14. O-O-O {[%clk 0:01:05.2]} 14... Nxe3 {[%clk 0:01:24.6]} 15. Qxe3 {[%clk
0:00:54.5]} 15... Qh5 {[%clk 0:01:24.8]} 16. Rh1 {[%clk 0:00:49.7]} 16... Qg4
{[%clk 0:01:15.5]} 17. Rh4 {[%clk 0:00:49.4]} 17... Qxh4 {[%clk 0:00:23.9]} 18.
gxh4 {[%clk 0:00:36.7]} 18... c5 {[%clk 0:00:23.7]} 19. Nc3 {[%clk 0:00:34.2]}
19... a6 {[%clk 0:00:21]} 20. Nd5 {[%clk 0:00:34.3]} 20... Ra7 {[%clk
0:00:20.8]} 21. b4 {[%clk 0:00:33.6]} 21... Bb7 {[%clk 0:00:16.1]} 22. bxc5
{[%clk 0:00:33.4]} 22... Bxd5 {[%clk 0:00:16.4]} 23. exd5 {[%clk 0:00:30.6]}
23... f6 {[%clk 0:00:17.3]} 24. c6 {[%clk 0:00:29.1]} 24... Rc7 {[%clk
0:00:17.3]} 25. Qb6 {[%clk 0:00:29.3]} 25... Rc8 {[%clk 0:00:17.5]} 26. Qxa6
{[%clk 0:00:28.9]} 26... O-O {[%clk 0:00:16.7]} 27. Qxb5 {[%clk 0:00:28.4]}
27... Ra8 {[%clk 0:00:16.7]} 28. c7 {[%clk 0:00:26.9]} 28... Rfc8 {[%clk
0:00:16.2]} 29. Qd7 {[%clk 0:00:23.6]} 1-0

[Event "Late-Titled-Tuesday-Blitz-January-16-2024"]
[Site "Chess.com"]
[Date "2024.01.16"]
[Round "11"]
[White "Nf3c5"]
[Black "Piotrek1979"]
[Result "1-0"]
[WhiteElo "2557"]
[BlackElo "2420"]
[TimeControl "180+1"]
[EndTime "16:06:04 PST"]
[Termination "Nf3c5 won on time"]

1. d4 {[%clk 0:02:53.2]} 1... Nf6 {[%clk 0:03:00]} 2. Nf3 {[%clk 0:02:53]} 2...
d5 {[%clk 0:02:57.2]} 3. e3 {[%clk 0:02:50.6]} 3... c5 {[%clk 0:02:57.7]} 4.
dxc5 {[%clk 0:02:50.3]} 4... Nc6 {[%clk 0:02:56.9]} 5. c4 {[%clk 0:02:48.3]}
5... e6 {[%clk 0:02:42]} 6. a3 {[%clk 0:02:45]} 6... Bxc5 {[%clk 0:02:16.8]} 7.
b4 {[%clk 0:02:41.6]} 7... Bd6 {[%clk 0:02:13.9]} 8. Bb2 {[%clk 0:02:42]} 8...
O-O {[%clk 0:02:12.2]} 9. Nbd2 {[%clk 0:02:41.7]} 9... b6 {[%clk 0:02:02.9]} 10.
Be2 {[%clk 0:02:33.3]} 10... Bb7 {[%clk 0:01:59.8]} 11. cxd5 {[%clk 0:02:30.7]}
11... Nxd5 {[%clk 0:01:52.8]} 12. O-O {[%clk 0:02:26.7]} 12... Rc8 {[%clk
0:01:49.5]} 13. Rc1 {[%clk 0:02:24.5]} 13... Qe7 {[%clk 0:01:46.7]} 14. Ne4
{[%clk 0:02:19.6]} 14... Bb8 {[%clk 0:01:42.3]} 15. Nd4 {[%clk 0:02:19]} 15...
Ne5 {[%clk 0:01:37.1]} 16. Ng3 {[%clk 0:01:38.5]} 16... Nxe3 {[%clk 0:01:35.7]}
17. fxe3 {[%clk 0:01:33.3]} 17... Qh4 {[%clk 0:01:35.5]} 18. Rxc8 {[%clk
0:01:26.9]} 18... Rxc8 {[%clk 0:01:32.5]} 19. Nf3 {[%clk 0:01:24.7]} 19... Bxf3
{[%clk 0:00:54.9]} 20. Bxf3 {[%clk 0:01:25.6]} 20... Nc4 {[%clk 0:00:43.2]} 21.
Qd4 {[%clk 0:01:00.7]} 21... Qxd4 {[%clk 0:00:42.6]} 22. Bxd4 {[%clk 0:01:01.3]}
22... e5 {[%clk 0:00:27.8]} 23. Ba1 {[%clk 0:00:52.6]} 23... Nxe3 {[%clk
0:00:27.1]} 24. Re1 {[%clk 0:00:49.2]} 24... Nc2 {[%clk 0:00:26.9]} 25. Rc1
{[%clk 0:00:48.9]} 25... Rc4 {[%clk 0:00:24.5]} 26. Bd5 {[%clk 0:00:41]} 26...
Rc7 {[%clk 0:00:18.4]} 27. Bxe5 {[%clk 0:00:38.4]} 27... Rd7 {[%clk 0:00:01.4]}
28. Rxc2 {[%clk 0:00:34.6]} 1-0

[Event "Late-Titled-Tuesday-Blitz-January-16-2024"]
[Site "Chess.com"]
[Date "2024.01.16"]
[Round "11"]
[White "Lion-Al-Messi"]
[Black "Matrix3x3a"]
[Result "1-0"]
[WhiteElo "2601"]
[BlackElo "2472"]
[TimeControl "180+1"]
[EndTime "16:06:10 PST"]
[Termination "Lion-Al-Messi won by resignation"]

1. e4 {[%clk 0:03:00.9]} 1... e5 {[%clk 0:02:59.6]} 2. Nf3 {[%clk 0:03:01.1]}
2... Nc6 {[%clk 0:02:58.9]} 3. Bb5 {[%clk 0:03:01.7]} 3... a6 {[%clk 0:02:58.5]}
4. Ba4 {[%clk 0:03:01.9]} 4... Nf6 {[%clk 0:02:56.5]} 5. O-O {[%clk 0:03:01.9]}
5... d6 {[%clk 0:02:55.6]} 6. Re1 {[%clk 0:02:50.8]} 6... Bd7 {[%clk 0:02:53.4]}
7. c3 {[%clk 0:02:50.9]} 7... g6 {[%clk 0:02:51.1]} 8. d4 {[%clk 0:02:50.3]}
8... Bg7 {[%clk 0:02:49.7]} 9. Nbd2 {[%clk 0:02:48.9]} 9... O-O {[%clk
0:02:48.3]} 10. Nf1 {[%clk 0:02:49.2]} 10... exd4 {[%clk 0:02:45.4]} 11. cxd4
{[%clk 0:02:48.7]} 11... b5 {[%clk 0:02:43.8]} 12. Bb3 {[%clk 0:02:48.3]} 12...
Bg4 {[%clk 0:02:41.2]} 13. e5 {[%clk 0:02:31.8]} 13... Bxf3 {[%clk 0:02:09]} 14.
gxf3 {[%clk 0:02:19.5]} 14... dxe5 {[%clk 0:02:07.9]} 15. dxe5 {[%clk
0:02:19.8]} 15... Qxd1 {[%clk 0:02:01.1]} 16. Bxd1 {[%clk 0:02:20.7]} 16... Nd5
{[%clk 0:01:58.5]} 17. f4 {[%clk 0:02:20.3]} 17... Nde7 {[%clk 0:01:57.7]} 18.
Bf3 {[%clk 0:02:19.9]} 18... Rad8 {[%clk 0:01:56.8]} 19. Be3 {[%clk 0:02:18.8]}
19... Nd4 {[%clk 0:01:56.3]} 20. Bxd4 {[%clk 0:02:19]} 20... Rxd4 {[%clk
0:01:56.5]} 21. Re4 {[%clk 0:02:17.6]} 21... Rxe4 {[%clk 0:01:55]} 22. Bxe4
{[%clk 0:02:18.5]} 22... Rd8 {[%clk 0:01:50.1]} 23. Rc1 {[%clk 0:02:18.3]} 23...
Rd7 {[%clk 0:01:49.8]} 24. Ne3 {[%clk 0:02:17.6]} 24... Kf8 {[%clk 0:01:42.4]}
25. Rd1 {[%clk 0:02:17.8]} 25... Rxd1+ {[%clk 0:01:40.2]} 26. Nxd1 {[%clk
0:02:18.7]} 26... c6 {[%clk 0:01:36.1]} 27. Ne3 {[%clk 0:02:16.8]} 27... Ke8
{[%clk 0:01:33.1]} 28. b4 {[%clk 0:01:57.2]} 28... Kd7 {[%clk 0:01:31.2]} 29.
Kg2 {[%clk 0:01:54.4]} 29... f6 {[%clk 0:01:20]} 30. exf6 {[%clk 0:01:53.8]}
30... Bxf6 {[%clk 0:01:20.4]} 31. Kf3 {[%clk 0:01:53.2]} 31... Bc3 {[%clk
0:01:14.5]} 32. Nc2 {[%clk 0:01:52]} 32... a5 {[%clk 0:01:11.6]} 33. bxa5 {[%clk
0:01:51.3]} 33... Bxa5 {[%clk 0:01:12.5]} 34. Ne3 {[%clk 0:01:49.1]} 34... Bc3
{[%clk 0:01:08.4]} 35. f5 {[%clk 0:01:48.4]} 35... Bg7 {[%clk 0:00:59]} 36. fxg6
{[%clk 0:01:47.8]} 36... hxg6 {[%clk 0:00:59.9]} 37. h4 {[%clk 0:01:46.9]} 37...
c5 {[%clk 0:00:53.5]} 38. Ng2 {[%clk 0:01:40.1]} 38... c4 {[%clk 0:00:50.7]} 39.
Nf4 {[%clk 0:01:40.2]} 39... Bf6 {[%clk 0:00:46.4]} 40. Kg4 {[%clk 0:01:40.2]}
40... Bd4 {[%clk 0:00:39.5]} 41. f3 {[%clk 0:01:35.2]} 41... c3 {[%clk
0:00:37.8]} 42. Nxg6 {[%clk 0:01:35.1]} 42... Nxg6 {[%clk 0:00:36.5]} 43. Bxg6
{[%clk 0:01:36]} 43... Ke6 {[%clk 0:00:31.1]} 44. h5 {[%clk 0:01:35.9]} 44... b4
{[%clk 0:00:28.5]} 45. h6 {[%clk 0:01:35.7]} 45... Bh8 {[%clk 0:00:27.6]} 46. h7
{[%clk 0:01:35]} 46... Ke5 {[%clk 0:00:26]} 47. f4+ {[%clk 0:01:31]} 47... Kd4
{[%clk 0:00:23.6]} 48. Kf3 {[%clk 0:01:29.4]} 48... Kc4 {[%clk 0:00:20.5]} 49.
Bc2 {[%clk 0:01:29.3]} 49... Kd4 {[%clk 0:00:20.4]} 50. Ke2 {[%clk 0:01:21.1]}
50... Kd5 {[%clk 0:00:19.9]} 51. Kd3 {[%clk 0:01:19.6]} 51... Kc5 {[%clk
0:00:20.3]} 52. Bb3 {[%clk 0:01:17.8]} 52... Kb5 {[%clk 0:00:20.5]} 53. Ke4
{[%clk 0:01:15.7]} 53... Kc5 {[%clk 0:00:21.4]} 54. f5 {[%clk 0:01:13.8]} 54...
Kb5 {[%clk 0:00:21.4]} 55. Kd5 {[%clk 0:01:13.6]} 55... Ka5 {[%clk 0:00:21.4]}
56. Ke6 {[%clk 0:01:13.2]} 56... Kb5 {[%clk 0:00:21.5]} 57. f6 {[%clk
0:01:13.3]} 57... Kc5 {[%clk 0:00:21.9]} 58. f7 {[%clk 0:01:13.5]} 58... Bg7
{[%clk 0:00:22.3]} 59. h8=Q {[%clk 0:01:13.3]} 59... Bxh8 {[%clk 0:00:22.4]} 60.
f8=Q+ {[%clk 0:01:13.7]} 1-0

[Event "Late-Titled-Tuesday-Blitz-January-16-2024"]
[Site "Chess.com"]
[Date "2024.01.16"]
[Round "11"]
[White "Redzishchess"]
[Black "Goryachkina"]
[Result "1/2-1/2"]
[WhiteElo "2503"]
[BlackElo "2683"]
[TimeControl "180+1"]
[EndTime "16:06:15 PST"]
[Termination "Game drawn by repetition"]

1. d4 {[%clk 0:02:55.8]} 1... Nf6 {[%clk 0:02:59.6]} 2. Nc3 {[%clk 0:02:55.7]}
2... e6 {[%clk 0:02:58.9]} 3. Bg5 {[%clk 0:02:53]} 3... h6 {[%clk 0:02:54.6]} 4.
Bxf6 {[%clk 0:02:49.6]} 4... Qxf6 {[%clk 0:02:54.9]} 5. e4 {[%clk 0:02:50.5]}
5... d6 {[%clk 0:02:50.3]} 6. g3 {[%clk 0:02:48.2]} 6... g6 {[%clk 0:02:49.9]}
7. Bg2 {[%clk 0:02:48.6]} 7... Bg7 {[%clk 0:02:50]} 8. Nge2 {[%clk 0:02:49.2]}
8... O-O {[%clk 0:02:50.3]} 9. O-O {[%clk 0:02:49.7]} 9... Nc6 {[%clk
0:02:38.4]} 10. d5 {[%clk 0:02:31.1]} 10... Ne5 {[%clk 0:02:37.7]} 11. Nf4
{[%clk 0:02:02.6]} 11... Nc4 {[%clk 0:02:32.2]} 12. Rb1 {[%clk 0:01:39.2]} 12...
Nxb2 {[%clk 0:02:26.7]} 13. Rxb2 {[%clk 0:01:40.1]} 13... Qxc3 {[%clk
0:02:26.7]} 14. Rb3 {[%clk 0:01:39.2]} 14... Qc5 {[%clk 0:02:22.8]} 15. dxe6
{[%clk 0:01:35.2]} 15... fxe6 {[%clk 0:01:47.8]} 16. Nxg6 {[%clk 0:01:33.5]}
16... Rf7 {[%clk 0:01:47.9]} 17. e5 {[%clk 0:01:12.4]} 17... d5 {[%clk
0:01:33.6]} 18. Kh1 {[%clk 0:00:59.9]} 18... Bd7 {[%clk 0:01:24.2]} 19. f4
{[%clk 0:00:56.1]} 19... Bb5 {[%clk 0:01:22.3]} 20. Rff3 {[%clk 0:00:38.3]}
20... d4 {[%clk 0:01:11.1]} 21. h4 {[%clk 0:00:19.4]} 21... Bc4 {[%clk 0:00:56]}
22. Rxb7 {[%clk 0:00:18.1]} 22... Bd5 {[%clk 0:00:54.1]} 23. Rfb3 {[%clk
0:00:16.8]} 23... Bxb7 {[%clk 0:00:49.5]} 24. Rxb7 {[%clk 0:00:16.7]} 24... Rd8
{[%clk 0:00:48.6]} 25. Qd3 {[%clk 0:00:16.5]} 25... Qc3 {[%clk 0:00:33.6]} 26.
Be4 {[%clk 0:00:16.6]} 26... Qxd3 {[%clk 0:00:28.3]} 27. Bxd3 {[%clk 0:00:16.5]}
27... c5 {[%clk 0:00:13.8]} 28. Ne7+ {[%clk 0:00:16.8]} 28... Kf8 {[%clk
0:00:14]} 29. Ng6+ {[%clk 0:00:17.3]} 29... Kg8 {[%clk 0:00:14.3]} 30. Ne7+
{[%clk 0:00:17.8]} 30... Kf8 {[%clk 0:00:14.8]} 31. Ng6+ {[%clk 0:00:18.1]}
31... Kg8 {[%clk 0:00:15.3]} 1/2-1/2

[Event "Late-Titled-Tuesday-Blitz-January-16-2024"]
[Site "Chess.com"]
[Date "2024.01.16"]
[Round "11"]
[White "GHANDEEVAM2003"]
[Black "LevonAronian"]
[Result "0-1"]
[WhiteElo "3025"]
[BlackElo "3111"]
[TimeControl "180+1"]
[EndTime "16:06:19 PST"]
[Termination "LevonAronian won on time"]

1. c4 {[%clk 0:03:00.9]} 1... Nf6 {[%clk 0:02:54.5]} 2. Nc3 {[%clk 0:02:59.2]}
2... e5 {[%clk 0:02:54.8]} 3. Nf3 {[%clk 0:02:58.2]} 3... e4 {[%clk 0:02:55.1]}
4. Ng5 {[%clk 0:02:57.7]} 4... c6 {[%clk 0:02:55.6]} 5. Ngxe4 {[%clk 0:02:57.2]}
5... Nxe4 {[%clk 0:02:55.5]} 6. Nxe4 {[%clk 0:02:58.1]} 6... d5 {[%clk
0:02:56.2]} 7. cxd5 {[%clk 0:02:59]} 7... cxd5 {[%clk 0:02:56.6]} 8. Ng3 {[%clk
0:02:59.7]} 8... h5 {[%clk 0:02:55.8]} 9. e3 {[%clk 0:02:59.9]} 9... h4 {[%clk
0:02:56.1]} 10. Ne2 {[%clk 0:02:59]} 10... Nc6 {[%clk 0:02:56.4]} 11. d4 {[%clk
0:02:53.8]} 11... Qf6 {[%clk 0:02:55]} 12. Nf4 {[%clk 0:02:49.8]} 12... Bd6
{[%clk 0:02:53.8]} 13. Bb5 {[%clk 0:02:30.8]} 13... Bd7 {[%clk 0:02:43.8]} 14.
O-O {[%clk 0:02:22.2]} 14... O-O-O {[%clk 0:02:42.5]} 15. Nxd5 {[%clk
0:02:18.2]} 15... Qg6 {[%clk 0:02:42.5]} 16. Nf4 {[%clk 0:01:56.6]} 16... Bxf4
{[%clk 0:02:11.5]} 17. exf4 {[%clk 0:01:55.6]} 17... Nxd4 {[%clk 0:02:03.7]} 18.
Bd3 {[%clk 0:01:34.8]} 18... f5 {[%clk 0:01:48.4]} 19. f3 {[%clk 0:01:10.7]}
19... h3 {[%clk 0:01:33.4]} 20. g3 {[%clk 0:01:02.5]} 20... Rhe8 {[%clk
0:01:29.5]} 21. Be3 {[%clk 0:00:56]} 21... Qb6 {[%clk 0:01:19.5]} 22. Qd2 {[%clk
0:00:38.1]} 22... Bc6 {[%clk 0:00:50.1]} 23. Rae1 {[%clk 0:00:38.5]} 23... Kb8
{[%clk 0:00:34.8]} 24. Qc3 {[%clk 0:00:16.1]} 24... Ne2+ {[%clk 0:00:32.5]} 25.
Rxe2 {[%clk 0:00:08]} 25... Rxe3 {[%clk 0:00:33]} 26. Ref2 {[%clk 0:00:00.6]}
26... Rexd3 {[%clk 0:00:24.1]} 27. Qxg7 {[%clk 0:00:00.6]} 27... Rxf3 {[%clk
0:00:22]} 0-1

[Event "Late-Titled-Tuesday-Blitz-January-16-2024"]
[Site "Chess.com"]
[Date "2024.01.16"]
[Round "11"]
[White "Gyulamiryan-koryun"]
[Black "ZuraTqebuchava"]
[Result "0-1"]
[WhiteElo "1655"]
[BlackElo "2112"]
[TimeControl "180+1"]
[EndTime "16:06:22 PST"]
[Termination "ZuraTqebuchava won on time"]

1. e4 {[%clk 0:03:00.9]} 1... e5 {[%clk 0:02:55.3]} 2. Nf3 {[%clk 0:02:59.6]}
2... d6 {[%clk 0:02:54.8]} 3. d4 {[%clk 0:02:57.9]} 3... exd4 {[%clk 0:02:54.3]}
4. Nxd4 {[%clk 0:02:54]} 4... Nc6 {[%clk 0:02:53.1]} 5. Bc4 {[%clk 0:02:43]}
5... Nf6 {[%clk 0:02:49.2]} 6. Nc3 {[%clk 0:02:40.4]} 6... Be7 {[%clk
0:02:47.6]} 7. O-O {[%clk 0:02:38.1]} 7... O-O {[%clk 0:02:46.6]} 8. Nd5 {[%clk
0:02:04.3]} 8... Nxd5 {[%clk 0:02:34.2]} 9. Bxd5 {[%clk 0:02:01.9]} 9... Nxd4
{[%clk 0:02:32.1]} 10. Qxd4 {[%clk 0:01:59.4]} 10... Bf6 {[%clk 0:02:29]} 11.
Qd3 {[%clk 0:01:49.7]} 11... c6 {[%clk 0:02:24.5]} 12. Bb3 {[%clk 0:01:44.6]}
12... a5 {[%clk 0:01:54.3]} 13. a4 {[%clk 0:01:38.6]} 13... b6 {[%clk 0:01:47]}
14. Rd1 {[%clk 0:01:29.7]} 14... Ba6 {[%clk 0:01:29.4]} 15. Qxd6 {[%clk
0:01:25.2]} 15... Qxd6 {[%clk 0:01:28.8]} 16. Rxd6 {[%clk 0:01:24.8]} 16... Rad8
{[%clk 0:01:20.3]} 17. Bf4 {[%clk 0:01:23.2]} 17... Bxb2 {[%clk 0:01:08.4]} 18.
Rad1 {[%clk 0:01:16.6]} 18... Bf6 {[%clk 0:00:43.9]} 19. e5 {[%clk 0:01:12.6]}
19... Be7 {[%clk 0:00:40.4]} 20. Rxd8 {[%clk 0:01:10.1]} 20... Rxd8 {[%clk
0:00:39.8]} 21. Rxd8+ {[%clk 0:01:07.2]} 21... Bxd8 {[%clk 0:00:40.3]} 22. e6
{[%clk 0:00:57.1]} 22... fxe6 {[%clk 0:00:39]} 23. Bxe6+ {[%clk 0:00:56.4]}
23... Kf8 {[%clk 0:00:37]} 24. c4 {[%clk 0:00:19.1]} 24... h6 {[%clk 0:00:31.5]}
25. Bd6+ {[%clk 0:00:13.7]} 25... Ke8 {[%clk 0:00:29.8]} 26. c5 {[%clk
0:00:11.6]} 26... b5 {[%clk 0:00:24.1]} 27. axb5 {[%clk 0:00:07.7]} 27... Bxb5
{[%clk 0:00:23.5]} 28. f4 {[%clk 0:00:04.1]} 28... Be7 {[%clk 0:00:23.3]} 0-1

[Event "Late-Titled-Tuesday-Blitz-January-16-2024"]
[Site "Chess.com"]
[Date "2024.01.16"]
[Round "11"]
[White "diamonds13"]
[Black "jk13"]
[Result "0-1"]
[WhiteElo "2351"]
[BlackElo "2655"]
[TimeControl "180+1"]
[EndTime "16:06:24 PST"]
[Termination "jk13 won by resignation"]

1. d4 {[%clk 0:03:00.9]} 1... h5 {[%clk 0:02:57.7]} 2. e4 {[%clk 0:02:58.4]}
2... a5 {[%clk 0:02:57.8]} 3. c4 {[%clk 0:02:57.5]} 3... g6 {[%clk 0:02:57]} 4.
Nc3 {[%clk 0:02:57.6]} 4... Bg7 {[%clk 0:02:56.8]} 5. g4 {[%clk 0:02:57.4]} 5...
hxg4 {[%clk 0:02:56.5]} 6. Qxg4 {[%clk 0:02:56.1]} 6... Bxd4 {[%clk 0:02:50]} 7.
Bd2 {[%clk 0:02:53.4]} 7... d6 {[%clk 0:02:37.6]} 8. Qe2 {[%clk 0:02:48.5]} 8...
Nc6 {[%clk 0:02:32.9]} 9. Nf3 {[%clk 0:02:46.8]} 9... Bg7 {[%clk 0:02:33.5]} 10.
O-O-O {[%clk 0:02:43.8]} 10... Bg4 {[%clk 0:02:33.4]} 11. Be3 {[%clk 0:02:38]}
11... Bxc3 {[%clk 0:02:10.1]} 12. bxc3 {[%clk 0:02:37.1]} 12... Ne5 {[%clk
0:02:10.3]} 13. Bg2 {[%clk 0:02:36.4]} 13... Nf6 {[%clk 0:01:52.6]} 14. Bd4
{[%clk 0:02:32.2]} 14... Nfd7 {[%clk 0:01:21.4]} 15. h3 {[%clk 0:02:29.5]} 15...
Bxf3 {[%clk 0:01:15.9]} 16. Bxf3 {[%clk 0:02:29.7]} 16... c5 {[%clk 0:01:15]}
17. Be3 {[%clk 0:02:29.8]} 17... Qc7 {[%clk 0:01:07.6]} 18. Bg4 {[%clk
0:02:20.1]} 18... Nb6 {[%clk 0:01:03.4]} 19. f4 {[%clk 0:02:19.8]} 19... Nexc4
{[%clk 0:01:04]} 20. Bf2 {[%clk 0:02:13.8]} 20... Qc6 {[%clk 0:00:55.8]} 21. e5
{[%clk 0:01:40.5]} 21... d5 {[%clk 0:00:53.9]} 22. e6 {[%clk 0:01:32.3]} 22...
f5 {[%clk 0:00:50.3]} 23. Bf3 {[%clk 0:01:29.5]} 23... O-O-O {[%clk 0:00:50.6]}
24. h4 {[%clk 0:01:29.6]} 24... Rd6 {[%clk 0:00:41.3]} 25. Rhe1 {[%clk
0:01:23.9]} 25... Kb8 {[%clk 0:00:38.6]} 26. h5 {[%clk 0:01:18.9]} 26... gxh5
{[%clk 0:00:37.3]} 27. Bh4 {[%clk 0:01:17.1]} 27... Rh7 {[%clk 0:00:28.2]} 28.
Bf2 {[%clk 0:01:01.9]} 28... Qb5 {[%clk 0:00:25.9]} 29. Qc2 {[%clk 0:00:56]}
29... Rh6 {[%clk 0:00:23.8]} 30. Rg1 {[%clk 0:00:53.2]} 30... Rhxe6 {[%clk
0:00:22.3]} 31. Rg8+ {[%clk 0:00:52.3]} 31... Ka7 {[%clk 0:00:22.2]} 32. Bxh5
{[%clk 0:00:45.5]} 32... Ne3 {[%clk 0:00:20.3]} 33. Bxe3 {[%clk 0:00:43.2]}
33... Rxe3 {[%clk 0:00:21.2]} 34. Be8 {[%clk 0:00:38.6]} 34... Qc4 {[%clk
0:00:19.7]} 35. Kd2 {[%clk 0:00:29]} 35... d4 {[%clk 0:00:19.1]} 36. Qb3 {[%clk
0:00:23.1]} 36... Qe2+ {[%clk 0:00:15.6]} 37. Kc1 {[%clk 0:00:23]} 37... Rxc3+
{[%clk 0:00:16.5]} 38. Qxc3 {[%clk 0:00:22.2]} 38... dxc3 {[%clk 0:00:17.4]} 39.
Rxd6 {[%clk 0:00:21.7]} 39... Qb2+ {[%clk 0:00:17.6]} 0-1

[Event "Late-Titled-Tuesday-Blitz-January-16-2024"]
[Site "Chess.com"]
[Date "2024.01.16"]
[Round "11"]
[White "PepeCuenca"]
[Black "GlavkonVVS"]
[Result "1-0"]
[WhiteElo "2690"]
[BlackElo "2486"]
[TimeControl "180+1"]
[EndTime "16:06:26 PST"]
[Termination "PepeCuenca won by resignation"]

1. d4 {[%clk 0:02:53.4]} 1... Nf6 {[%clk 0:02:59]} 2. Bf4 {[%clk 0:02:50.7]}
2... e6 {[%clk 0:02:57.7]} 3. e3 {[%clk 0:02:50.5]} 3... d6 {[%clk 0:02:56.2]}
4. Nf3 {[%clk 0:02:50.6]} 4... g6 {[%clk 0:02:56.8]} 5. c4 {[%clk 0:02:49.3]}
5... Bg7 {[%clk 0:02:57.2]} 6. Nc3 {[%clk 0:02:50.1]} 6... O-O {[%clk
0:02:57.5]} 7. h3 {[%clk 0:02:50.8]} 7... b6 {[%clk 0:02:57.3]} 8. Bh2 {[%clk
0:02:50.3]} 8... Bb7 {[%clk 0:02:57.9]} 9. Be2 {[%clk 0:02:50.9]} 9... Nbd7
{[%clk 0:02:58.2]} 10. O-O {[%clk 0:02:51.2]} 10... Qe7 {[%clk 0:02:58.7]} 11.
d5 {[%clk 0:02:45.5]} 11... exd5 {[%clk 0:02:55.6]} 12. cxd5 {[%clk 0:02:46.4]}
12... a6 {[%clk 0:02:52.5]} 13. a4 {[%clk 0:02:42.4]} 13... Ne4 {[%clk
0:02:47.7]} 14. Rc1 {[%clk 0:02:21.4]} 14... Nxc3 {[%clk 0:02:45.4]} 15. bxc3
{[%clk 0:02:22.3]} 15... Nc5 {[%clk 0:02:39.8]} 16. c4 {[%clk 0:02:19.8]} 16...
Rfe8 {[%clk 0:02:25.9]} 17. Nd4 {[%clk 0:02:16.1]} 17... Bxd4 {[%clk 0:02:20.2]}
18. Qxd4 {[%clk 0:02:15.9]} 18... Nb3 {[%clk 0:02:20.4]} 19. Qb2 {[%clk
0:02:15.8]} 19... Nxc1 {[%clk 0:02:20.3]} 20. Rxc1 {[%clk 0:02:16.4]} 20... a5
{[%clk 0:02:17.8]} 21. Bf4 {[%clk 0:02:15]} 21... Bc8 {[%clk 0:02:10.1]} 22. Bd1
{[%clk 0:02:08.3]} 22... f6 {[%clk 0:02:05.5]} 23. Bb3 {[%clk 0:02:06.3]} 23...
Kg7 {[%clk 0:02:05.2]} 24. Re1 {[%clk 0:02:02.9]} 24... h6 {[%clk 0:01:57]} 25.
e4 {[%clk 0:02:02.2]} 25... g5 {[%clk 0:01:56.8]} 26. Bd2 {[%clk 0:01:59.2]}
26... Bd7 {[%clk 0:01:54.9]} 27. Bc3 {[%clk 0:01:58.8]} 27... Qf7 {[%clk
0:01:54.4]} 28. Re3 {[%clk 0:01:57.6]} 28... Rf8 {[%clk 0:01:43.9]} 29. Rf3
{[%clk 0:01:51.1]} 29... Qe7 {[%clk 0:01:36.4]} 30. Re3 {[%clk 0:01:48.8]} 30...
Rae8 {[%clk 0:01:36.1]} 31. Bc2 {[%clk 0:01:47.9]} 31... Rf7 {[%clk 0:01:34.6]}
32. h4 {[%clk 0:01:42.7]} 32... gxh4 {[%clk 0:01:29.4]} 33. Rf3 {[%clk
0:01:37.2]} 33... Rg8 {[%clk 0:01:28.1]} 34. Qc1 {[%clk 0:01:36.1]} 34... Bg4
{[%clk 0:01:24.6]} 35. Rf4 {[%clk 0:01:34.4]} 35... Kf8 {[%clk 0:01:18.5]} 36.
f3 {[%clk 0:01:19.5]} 36... Bh3 {[%clk 0:01:16.9]} 37. Rxh4 {[%clk 0:01:18.6]}
37... Bxg2 {[%clk 0:01:06.7]} 38. Qxh6+ {[%clk 0:01:18.4]} 38... Ke8 {[%clk
0:01:06.4]} 39. Kf2 {[%clk 0:01:18.8]} 39... f5 {[%clk 0:01:01.4]} 40. exf5
{[%clk 0:01:10.2]} 40... Kd7 {[%clk 0:00:59.7]} 41. Qe6+ {[%clk 0:01:09.7]}
41... Kd8 {[%clk 0:00:57.3]} 42. Qxe7+ {[%clk 0:01:08.1]} 42... Kxe7 {[%clk
0:00:56.3]} 43. f6+ {[%clk 0:00:53.7]} 43... Kf8 {[%clk 0:00:39.8]} 44. Bf5
{[%clk 0:00:51.7]} 44... Rg5 {[%clk 0:00:35.2]} 45. Rh8+ {[%clk 0:00:48.2]}
45... Rg8 {[%clk 0:00:34.9]} 46. Rxg8+ {[%clk 0:00:48.3]} 46... Kxg8 {[%clk
0:00:35.3]} 47. Kxg2 {[%clk 0:00:47.8]} 47... Kf8 {[%clk 0:00:32.3]} 48. Bg6
{[%clk 0:00:46.9]} 48... Rd7 {[%clk 0:00:31.6]} 49. f7 {[%clk 0:00:47.2]} 49...
Rxf7 {[%clk 0:00:31]} 50. Bxf7 {[%clk 0:00:47.2]} 50... Kxf7 {[%clk 0:00:31.5]}
51. Kg3 {[%clk 0:00:47]} 51... Ke7 {[%clk 0:00:31.9]} 52. Kf4 {[%clk 0:00:47.5]}
52... Kd7 {[%clk 0:00:32.3]} 53. Kf5 {[%clk 0:00:48]} 53... c6 {[%clk
0:00:32.9]} 54. Ke4 {[%clk 0:00:46.9]} 54... cxd5+ {[%clk 0:00:27.5]} 55. Kxd5
{[%clk 0:00:47.1]} 1-0